[Event "US Masters 2022"]
[Site "Charlotte"]
[Date "2022.11.28"]
[Round "9.7"]
[White "Cruz, Cristhian"]
[Black "Korley, Kassa"]
[Result "1-0"]
[ECO "E14"]
[WhiteElo "2552"]
[BlackElo "2451"]
[Annotator "TA"]
[PlyCount "63"]
[EventDate "2022.11.23"]
[EventType "swiss"]
[EventCountry "USA"]
[SourceTitle "playchess.com"]
[Source "ChessBase"]
[SourceQuality "1"]
[TimeControl "5400+30"]

{[%evp 20,63,17,21,54,41,50,41,62,95,54,77,134,149,257,175,197,199,189,195,192,181,183,95,106,90,252,97,226,226,226,212,226,226,650,660,901,884,906,890,825,632,629,612,594,593]} 1. c4 {[%emt 0:04:15]} e6 {[%emt 0:00:16]} 2. Nc3 {[%emt 0:00:46]} d5 {[%emt 0:00:12]} 3. e3 {[%emt 0:00:33]} Nf6 {[%emt 0:00:27]} 4. Nf3 {[%emt 0:00:16]} Be7 {[%emt 0:00:22]} 5. b3 {[%emt 0:00:44]} O-O {[%emt 0:00:56]} 6. Bb2 {[%emt 0:00:40]} b6 {[%emt 0:01:33]} 7. cxd5 {[%emt 0:02:10]} exd5 {[%emt 0:00:08]} 8. d4 {[%emt 0:02:25]} Bb7 {[%emt 0:01:11]} 9. Bd3 {[%emt 0:02:59]} Nbd7 {[%emt 0:05:38]} 10. O-O {[%emt 0:00:32]} Ne4 {[%emt 0:00:51]} 11. Rc1 {[%emt 0:01:36]} Ndf6 {[%emt 0:11:20] E14: Queen's Indian: Classical Variation (4 e3).} 12. Ne2 {[%emt 0:06:43][%cal Bc3e2,Be2g3,Bg3f5][%mdl 32]} Bd6 {[%emt 0:03:12]} 13. Ne5 {[%emt 0:09:09]} c5 {[%emt 0:10:29] White is slightly better.} 14. f3 {[%emt 0:19:17][%cal Bf2f3,Bf3f4][%mdl 32]} Ng5 {[%emt 0:01:00]} 15. Ng3 {[%emt 0:00:09] [#]} Rc8 $146 {[%emt 0:13:48]} (15... cxd4 $142 16. exd4 (16. Bxd4 Ne6 $14) 16... g6) ({Predecessor:} 15... cxd4 16. exd4 g6 17. Qd2 Ne6 18. Qh6 Rc8 19. Rxc8 Qxc8 20. Nf5 Qd8 21. Qg7+ Nxg7 {1-0 (41) Kurajica,B (2565)-Karpov,A (2780) Tilburg 1994}) 16. Nf5 $16 {[%emt 0:05:50]} Bb8 {[%emt 0:00:13]} (16... Ne6 $16 17. Qe1 cxd4 18. exd4 Rxc1 19. Bxc1 (19. Qxc1 Bb4 $16) 19... Nh5) 17. dxc5 {[%emt 0:04:33]} bxc5 {[%emt 0:00:48]} 18. f4 {[%emt 0:10:10]} Ne6 {[%emt 0:01:21]} 19. Ng4 {[%emt 0:01:09] And now Nxf6+ would win.} d4 {[%emt 0:01:50]} 20. exd4 {[%emt 0:03:49][%cal Od4d5] d5! is the strong threat.} cxd4 {[%emt 0:14:05]} 21. Rxc8 {[%emt 0:01:30]} Bxc8 {[%emt 0:00:04]} 22. Ba3 {[%emt 0:03:38] White has more active pieces.} Re8 {[%emt 0:11:21] [#] Inhibits Be7.} (22... Nd5 $16 {was necessary.}) 23. Bb5 $2 {[%emt 0:04:27]} (23. Be7 $1 $18 {[%mdl 512] and the rest is easy. Hoping for Nxf6+.} Rxe7 24. Nxf6+ gxf6 25. Qh5 Nxf4 26. Qg4+ (26. Nxe7+ Kf8 $16) 26... Ng6 27. Nxe7+ Qxe7 28. Qxc8+ Kg7 29. Qf5 (29. Bxg6 Qe3+ 30. Kh1 Qe5 $11)) 23... Nxf4 {[%emt 0:05:07] [#]} (23... Nd7 $16) 24. Be7 $1 $18 {[%emt 0:07:26]} Rxe7 {[%emt 0:03:16]} 25. Nxf6+ {[%emt 0:00:07]} Kh8 {[%emt 0:01:57]} 26. Nxe7 {[%emt 0:00:11] Chess con chili. Pair of Knights!} Bb7 $2 {[%emt 0:03:38]} (26... gxf6 27. Nxc8 Qxc8 28. Qxd4 Kg7) 27. Nh5 {[%emt 0:03:03][%cal Od1g4] Black must now prevent Qg4! White is clearly winning.} Nh3+ {[%emt 0:07:44]} 28. gxh3 {[%emt 0:00:28]} Qxe7 {[%emt 0:00:03]} 29. Re1 {[%emt 0:02:13]} Be5 {[%emt 0:00:04]} 30. Bd3 {[%emt 0:01:50]} g6 {[%emt 0:00:32]} 31. Qe2 {[%emt 0:01:16]} Qg5+ {[%emt 0:00:23]} 32. Qg4 {[%emt 0:00:05] Weighted Error Value: White=0.27 (precise) /Black=0.78} 1-0

[Event "US Masters 2022"]
[Site "Charlotte"]
[Date "2022.11.28"]
[Round "9.8"]
[White "Theodorou, Nikolas"]
[Black "Caglar, Sila"]
[Result "1-0"]
[ECO "E01"]
[WhiteElo "2598"]
[BlackElo "2268"]
[Annotator "TA"]
[PlyCount "89"]
[EventDate "2022.11.23"]
[EventType "swiss"]
[EventCountry "USA"]
[SourceTitle "playchess.com"]
[Source "ChessBase"]
[SourceQuality "1"]
[TimeControl "5400+30"]

{[%evp 9,89,0,23,14,23,26,20,22,25,0,0,0,0,0,11,0,52,51,55,49,48,31,49,25,29,21,34,38,30,40,153,153,155,157,158,167,151,158,189,162,117,109,186,194,198,125,120,156,192,217,298,221,285,311,415,416,421,393,554,495,584,566,823,784,854,796,898,907,838,752,930,834,1004,870,1048,674,952,947,919,906,768,715]} 1. d4 {[%emt 0:02:20]} d5 {[%emt 0:00:03]} 2. c4 {[%emt 0:00:04]} e6 {[%emt 0:00:05]} 3. Nf3 {[%emt 0:00:05]} Nf6 {[%emt 0:00:04]} 4. g3 {[%emt 0:00:10]} Bb4+ {[%emt 0:01:56]} 5. Bd2 {[%emt 0:00:15]} Bd6 {[%emt 0:00:22]} 6. Bg2 {[%emt 0:00:07] E01: Catalan: Early deviations.} O-O {[%emt 0:00:05]} 7. O-O {[%emt 0:00:56]} c6 {[%emt 0:03:22]} 8. Nc3 {[%emt 0:01:18] The position is equal.} dxc4 {[%emt 0:01:17]} 9. e4 {[%emt 0:00:10] And now e5 would win.} Be7 {[%emt 0:00:41]} 10. a4 {[%emt 0:00:06] Inhibits b5.} c5 {[%emt 0:04:29]} 11. dxc5 {[%emt 0:15:13]} Na6 {[%emt 0:01:45] [#]} 12. Ne5 $146 {[%emt 0:05:06][%cal Bf3e5,Be5c4,Bc4e5][%mdl 32]} ({Predecessor:} 12. e5 Nd5 13. Ne4 Nxc5 14. Nxc5 Bxc5 15. Qe2 b6 16. Qxc4 Bb7 17. b4 Be7 18. Qg4 {½-½ (39) Schnepp,G (2349)-Buechmann,O (2143) Tegernsee 2017}) 12... Nxc5 {[%emt 0:11:52]} ({Better is} 12... Qd4 $1 $11 13. Nf3 Qxc5) 13. Nxc4 {[%emt 0:01:29]} Qd3 {[%emt 0:11:09]} 14. Ne5 $36 {[%emt 0:01:13][%mdl 2048] White is more active.} Qd4 {[%emt 0:00:05]} 15. Bf4 {[%emt 0:00:20]} Qb4 {[%emt 0:00:30]} 16. Qe2 {[%emt 0:01:07]} Rd8 {[%emt 0:03:48]} 17. a5 {[%emt 0:06:06]} Bd7 {[%emt 0:02:38]} 18. Nxd7 {[%emt 0:01:55]} Nfxd7 {[%emt 0:00:45]} 19. Ra3 {[%emt 0:02:53] Na2 is the strong threat.} Nf8 {[%emt 0:04:00] [#]} (19... a6 $14) 20. Na2 $1 $16 {[%emt 0:04:02]} Qd4 {[%emt 0:04:38]} 21. Be3 {[%emt 0:00:07][%cal Bf4e3,Be3a7,Ba7c5][%mdl 32]} Qd7 {[%emt 0:01:17] [#]} 22. e5 $1 {[%emt 0:04:32]} Rac8 {[%emt 0:10:14]} 23. b4 {[%emt 0:08:26]} Nd3 {[%emt 0:03:33]} 24. Rb1 {[%emt 0:00:06] Strongly threatening f4.} Nxe5 {[%emt 0:00:56][%cal Bd3e5,Be5c6,Bc6d4][%mdl 32]} 25. Bxa7 {[%emt 0:00:12]} Bf6 {[%emt 0:07:23]} (25... Nc4 $16 26. Rc3 Ra8) 26. Bc5 $18 {[%emt 0:12:24]} Nfg6 {[%emt 0:02:10]} 27. Be4 {[%emt 0:01:49]} (27. Nc3 $18) 27... Ne7 $16 {[%emt 0:06:54]} 28. Nc3 {[%emt 0:00:59] aiming for Rd1. White has more active pieces.} (28. Qh5 $6 Nf5 $11) 28... N5c6 {[%emt 0:01:39]} 29. Bb6 {[%emt 0:04:02]} (29. Qh5 $6 g6 30. Qf3 Bxc3 31. Qxc3 Nd5 $14) 29... Re8 {[%emt 0:04:41]} 30. b5 {[%emt 0:03:50]} (30. Qh5 g6 31. Qb5 Nb8 $16) 30... Nd4 {[%emt 0:01:58]} 31. Qd3 {[%emt 0:00:25]} ({Inferior is} 31. Qh5 Qd6 32. Bxd4 (32. Qxh7+ Kf8 $11) 32... Bxd4 33. Qxh7+ Kf8 $11) 31... e5 {[%emt 0:00:58]} 32. Bxh7+ {[%emt 0:02:13] This pair of bishops is nice.} Kh8 {[%emt 0:00:03]} 33. Be4 {[%emt 0:00:06]} g6 {[%emt 0:03:41]} (33... Nef5 {was necessary.} 34. Bxf5 Qxf5 35. Qxf5 Nxf5) 34. Na4 {[%emt 0:01:49] White is clearly winning.} Kg7 {[%emt 0:01:59]} 35. Bxd4 {[%emt 0:00:22]} exd4 {[%emt 0:00:12]} 36. Nb6 {[%emt 0:00:19][%csl LRc8,LRd7]} Qh3 {[%emt 0:01:03]} 37. Bg2 {[%emt 0:00:18]} Qh6 {[%emt 0:00:35]} 38. Nxc8 {[%emt 0:00:07]} Nxc8 {[%emt 0:01:43]} 39. a6 {[%emt 0:01:25]} bxa6 {[%emt 0:02:58]} 40. bxa6 {[%emt 0:00:02]} Re7 {[%emt 0:00:35]} 41. Rab3 {[%emt 0:22:32]} Rc7 {[%emt 0:00:33]} 42. Qd1 {[%emt 0:00:00] Threatens to win with Rb7.} Qg5 {[%emt 0:00:55]} 43. Rb5 {[%emt 0:00:00]} Rc5 {[%emt 0:00:28]} 44. Rxc5 {[%emt 0:00:00]} Qxc5 {[%emt 0:00:03]} 45. Rc1 {[%emt 0:00:00] Weighted Error Value: White=0.27 (precise) /Black=0.34} 1-0

[Event "US Masters 2022"]
[Site "Charlotte"]
[Date "2022.11.28"]
[Round "9.9"]
[White "Chandra, Akshat"]
[Black "Burke, John M"]
[Result "1/2-1/2"]
[ECO "C88"]
[WhiteElo "2472"]
[BlackElo "2580"]
[Annotator "TA"]
[PlyCount "89"]
[EventDate "2022.11.23"]
[EventType "swiss"]
[EventCountry "USA"]
[SourceTitle "playchess.com"]
[Source "ChessBase"]
[SourceQuality "1"]
[TimeControl "5400+30"]

{[%evp 19,89,16,19,25,23,12,12,15,5,0,0,7,7,-45,0,0,0,0,2,4,5,5,20,16,48,8,36,37,26,33,80,57,58,52,45,45,106,106,99,98,103,107,104,104,111,100,111,113,111,103,118,117,116,70,70,70,70,63,70,63,63,63,70,47,70,70,70,70,70,33,34,19]} 1. e4 {[%emt 0:11:06]} e5 {[%emt 0:00:21]} 2. Nf3 {[%emt 0:00:13]} Nc6 {[%emt 0:00:05]} 3. Bb5 {[%emt 0:00:05][%cal Bf1b5,Bb5a4,Ba4b3][%mdl 32]} a6 {[%emt 0:00:04]} 4. Ba4 {[%emt 0:00:03]} Nf6 {[%emt 0:00:04]} 5. O-O {[%emt 0:00:05]} Be7 {[%emt 0:00:03]} 6. Re1 {[%emt 0:00:17]} b5 {[%emt 0:00:04]} 7. Bb3 {[%emt 0:00:04]} O-O {[%emt 0:00:04]} 8. a4 {[%emt 0:00:13]} b4 {[%emt 0:00:17]} 9. a5 {[%emt 0:00:03]} d6 {[%emt 0:00:25]} 10. d3 {[%emt 0:00:09]} Be6 {[%emt 0:00:34]} 11. Bxe6 {[%emt 0:00:07] C88: Closed Ruy Lopez: Anti-Marshall Systems.} fxe6 {[%emt 0:00:02]} 12. Nbd2 {[%emt 0:00:07]} Qe8 {[%emt 0:00:35]} 13. c3 {[%emt 0:00:28] The position is equal.} Qg6 {[%emt 0:01:26] [#]} 14. Qa4 $146 {[%emt 0:25:55]} ({Predecessor:} 14. d4 bxc3 15. bxc3 Rfb8 16. Qa4 Qe8 17. Qa2 Bf8 18. dxe5 dxe5 19. h3 h6 20. Qc2 {½-½ (45) Piacun,E (2418)-Stoeckert,M (2454) ICCF email 2019}) 14... Na7 {[%emt 0:07:55]} 15. Nf1 {[%emt 0:13:28]} ({Of course not} 15. cxb4 Nh5 16. g3 Nb5 $17) 15... Ng4 {[%emt 0:13:36]} 16. Qd1 {[%emt 0:07:05]} (16. Qxb4 Nb5 $14) (16. Re2 $11) 16... bxc3 {[%emt 0:16:35]} (16... Nb5 $5 {[%cal Rb4c3]}) 17. bxc3 {[%emt 0:00:04]} Nb5 {[%emt 0:00:07]} 18. Bd2 {[%emt 0:13:16]} d5 {[%emt 0:10:40][%cal Of8f3]} (18... Rxf3 $5 19. Qxf3 Bh4 $11) 19. Ne3 {[%emt 0:01:33]} dxe4 {[%emt 0:17:51]} (19... Nxe3 {simplifies} 20. Rxe3 Bd6 21. exd5 exd5 22. Nxe5 Bxe5 23. Rxe5 Rxf2 24. Kxf2 Qf6+) 20. dxe4 {[%emt 0:01:35]} Nxe3 {[%emt 0:02:23]} (20... Rad8 $5 {[%cal Rb5c3]} 21. Nxg4 Qxg4 22. Nxe5 Qxd1 23. Rexd1 (23. Raxd1 Bc5 $11) 23... Bf6 $11) 21. Rxe3 {[%emt 0:00:36]} Rad8 {[%emt 0:09:21] [#] White must now prevent ...Bc5.} 22. Qe2 {[%emt 0:02:56]} Bc5 {[%emt 0:01:07]} (22... Bg5 {simplifies} 23. Nxg5 Qxg5 24. Be1 Qe7) 23. Rd3 {[%emt 0:02:01]} ({Don't play} 23. Nxe5 Qg5 24. Nc6 Rd6 $15) 23... Nd6 {[%emt 0:01:12]} 24. Be3 {[%emt 0:02:44]} Nxe4 {[%emt 0:05:03]} (24... Qxe4 $14 {is superior.} 25. Ng5 Qc4) 25. Rxd8 {[%emt 0:02:27]} (25. Nxe5 {keeps more tension.} Qf6 26. Nd7 Rxd7 27. Rxd7 Nxc3 28. Qe1) 25... Rxd8 {[%emt 0:00:03]} 26. Bxc5 {[%emt 0:00:05]} Nxc5 {[%emt 0:00:04]} 27. Qxe5 $40 {[%emt 0:00:06][%mdl 128] Black needs to defend precisely.} Nd3 {[%emt 0:02:33]} ({Black should play} 27... Qd3 $14) 28. Qxc7 $16 {[%emt 0:01:04]} Rf8 {[%emt 0:00:03]} 29. Ne5 {[%emt 0:00:50]} Qf5 {[%emt 0:02:06]} 30. Nxd3 {[%emt 0:00:05]} Qxd3 {[%emt 0:00:03][%mdl 4096] Endgame KQR-KQR} 31. Qc6 {[%emt 0:03:00]} Qe2 {[%emt 0:00:25] [#]} 32. Rf1 {[%emt 0:00:17] aiming for c4.} Rf4 {[%emt 0:01:29] Prevents c4.} 33. g3 {[%emt 0:03:31] Inhibits h6.} Qc4 {[%emt 0:00:03]} 34. Qb6 {[%emt 0:03:38]} (34. Qd6 {looks sharper.} Rf3 35. Qb8+ Rf8 36. Qb4) 34... Rf5 {[%emt 0:01:49]} 35. Re1 {[%emt 0:00:31] Inhibits Qe2.} h6 {[%emt 0:00:15]} 36. Qxe6+ {[%emt 0:08:04]} (36. h4 $16) 36... Qxe6 $14 {[%emt 0:00:04] White is slightly better.} 37. Rxe6 {[%emt 0:00:02]} Rxa5 $16 {[%emt 0:00:03] KR-KR} 38. Kf1 {[%emt 0:00:36]} Ra2 {[%emt 0:01:38]} 39. Re2 {[%emt 0:00:03]} Ra1+ {[%emt 0:00:04]} 40. Re1 {[%emt 0:00:26]} Ra2 {[%emt 0:03:30]} 41. Re6 {[%emt 0:01:28]} Rc2 {[%emt 0:00:32]} 42. Rxa6 {[%emt 0:00:22] Threatens to win with Rc6.} Rxc3 {[%emt 0:00:03]} 43. Kg2 {[%emt 0:00:16]} Kf7 {[%emt 0:00:19]} 44. g4 {[%emt 0:00:12]} Rc5 {[%emt 0:02:11]} 45. Kg3 {[%emt 0:01:00] Weighted Error Value: White=0.10 (very precise) /Black=0.10 (very precise)} 1/2-1/2

[Event "US Masters 2022"]
[Site "Charlotte"]
[Date "2022.11.28"]
[Round "9.10"]
[White "Neef, Maximilian"]
[Black "Gazik, Viktor"]
[Result "0-1"]
[ECO "A40"]
[WhiteElo "2481"]
[BlackElo "2564"]
[Annotator "TA"]
[PlyCount "86"]
[EventDate "2022.11.23"]
[EventType "swiss"]
[EventCountry "USA"]
[SourceTitle "playchess.com"]
[Source "ChessBase"]
[SourceQuality "1"]
[TimeControl "5400+30"]

{[%evp 9,86,12,12,16,15,19,24,17,17,19,52,41,33,0,83,91,91,97,104,92,120,85,96,86,124,67,58,62,58,64,62,56,84,29,213,206,206,194,210,197,191,128,382,56,39,69,325,367,315,333,70,0,0,0,0,0,0,-324,-324,-324,-324,-419,-419,-866,-549,-1032,-549,-911,-885,-1051,-1032,-29965,-29966,-29977,-29978,-29970,-29955,-4132,-1492]} 1. Nf3 {[%emt 0:00:03]} g6 {[%emt 0:03:10]} 2. d4 {[%emt 0:00:47]} Bg7 {[%emt 0:01:25]} 3. g3 {[%emt 0:02:01]} c5 {[%emt 0:03:07]} 4. c3 {[%emt 0:03:09]} Qa5 {[%emt 0:04:59]} 5. d5 {[%emt 0:08:31]} Nf6 {[%emt 0:01:46]} 6. Bg2 {[%emt 0:01:04] A40: Unusual replies to 1 d4.} d6 {[%emt 0:14:06]} 7. O-O {[%emt 0:01:20]} O-O {[%emt 0:03:24]} 8. Re1 {[%emt 0:05:51] White has an edge.} b5 {[%emt 0:07:53]} 9. e4 {[%emt 0:01:24]} Bb7 {[%emt 0:04:32] [#]} 10. a4 $146 {[%emt 0:11:44]} ({Predecessor:} 10. Nbd2 c4 11. a4 a6 12. Ra3 Qb6 13. b4 cxb3 14. Qxb3 Nbd7 15. axb5 axb5 16. Nd4 {½-½ (26) Havanecz,B (2199)-Juhasz,B (2190) Hungary 2017}) 10... Nbd7 {[%emt 0:04:13]} 11. Bd2 {[%emt 0:01:47]} bxa4 {[%emt 0:10:35]} (11... b4 $11) 12. c4 $16 {[%emt 0:04:07]} Qc7 {[%emt 0:01:26]} 13. Qxa4 {[%emt 0:00:37]} (13. Rxa4 $6 Nb6 $11) 13... Nb6 {[%emt 0:04:11]} 14. Qc2 {[%emt 0:00:17]} Bc8 {[%emt 0:05:18][%cal Bb7c8,Bc8d7,Bd7c6][%mdl 32]} 15. Nc3 {[%emt 0:05:42]} Bd7 {[%emt 0:00:16]} (15... Nxc4 $2 16. Nb5 Qb7 17. Qxc4 $18) 16. b3 {[%emt 0:01:42]} (16. Nd1 {simplifies} e6 17. Bc3 exd5 18. cxd5 a5 19. Nd2) 16... Rae8 {[%emt 0:01:14]} 17. e5 {[%emt 0:12:56]} (17. Ra6 $16) 17... Ng4 $14 {[%emt 0:00:53]} 18. e6 {[%emt 0:07:37]} (18. Ra6 {simplifies} Nxe5 19. Nxe5 Bxe5 20. Bh6) 18... fxe6 {[%emt 0:00:01]} 19. h3 {[%emt 0:00:16]} Nf6 {[%emt 0:11:47][%cal Re6d5]} 20. dxe6 {[%emt 0:03:35]} Bc6 {[%emt 0:00:04]} 21. Nh4 {[%emt 0:01:08]} (21. Ng5 $16) 21... d5 $2 {[%emt 0:00:01] [#]} (21... Bxg2 $11 22. Nxg2 Qb7) 22. Nxg6 $1 {[%emt 0:04:26][%mdl 512]} hxg6 {[%emt 0:03:44]} 23. Qxg6 {[%emt 0:00:52]} Rd8 {[%emt 0:00:54] [#]} 24. Bf4 $1 {[%emt 0:03:39]} (24. Bh6 Ne8 $14) 24... Qb7 {[%emt 0:00:13]} 25. cxd5 {[%emt 0:08:08]} (25. Bh6 $6 Ne8 26. cxd5 Nxd5 $16) (25. Nxd5 $18 {Threatening mate with Bh6.} Nbxd5 26. cxd5) 25... Nbxd5 $2 {[%emt 0:00:20][%mdl 8192]} (25... Be8 $16 26. d6 (26. Qg5 Nbxd5 27. Nxd5 Rxd5 $16) 26... Bxg6 27. Bxb7 Nh5 28. dxe7 Nxf4 29. exd8=N (29. exf8=Q+ Rxf8 30. gxf4 Bxc3 $14) 29... Rxd8) 26. Bh6 $2 {[%emt 0:03:31]} (26. Nxd5 $18 {[%cal Of4h6] Intending Bh6! and mate.} Bxd5 {[#]} 27. Re5 $1 (27. Bh6 Ne8 $11)) 26... Ne8 {[%emt 0:00:01] [#]} 27. Be4 $1 {[%emt 0:03:42][%csl Ge4][%cal Rg6h7][%mdl 64]} Ndf6 {[%emt 0:00:09] Prevents Qh7+.} 28. Bxc6 {[%emt 0:00:56][%mdl 64] Deflection} Qxc6 {[%emt 0:00:01]} 29. Rxa7 {[%emt 0:00:07]} Qd6 {[%emt 0:07:10]} (29... Qf3 $18 30. Rxe7 (30. Bxg7 Nxg7 31. Rxe7 Nfe8 $16) 30... Nh5) 30. Rd1 {[%emt 0:03:21]} ({White should try} 30. Re3 $14 c4 31. bxc4) 30... Qxe6 $1 $11 {[%emt 0:00:01]} 31. Rxd8 {[%emt 0:00:07] Black must now prevent Bxg7.} Qe1+ {[%emt 0:00:01]} 32. Kg2 {[%emt 0:00:06] Hoping for Bxg7.} Ng4 $1 $40 {[%emt 0:00:01][%csl Ge1,Gg4][%cal Rf8f2][%mdl 128] Black mounts an attack.} 33. Qxg7+ $4 {[%emt 0:01:54][%mdl 8192]} Nxg7 $19 {[%emt 0:00:02] The board is on fire.} 34. Rxf8+ {[%emt 0:00:25]} Kxf8 {[%emt 0:00:02]} 35. hxg4 {[%emt 0:00:30]} Qxc3 {[%emt 0:00:02]} 36. Rc7 {[%emt 0:00:36]} (36. Bxg7+ $142 Qxg7 37. Ra4) 36... Qe5 {[%emt 0:00:27]} 37. Rc8+ {[%emt 0:00:31]} Kf7 {[%emt 0:00:03]} 38. Be3 {[%emt 0:00:29]} Ne6 {[%emt 0:00:05]} 39. Kh2 {[%emt 0:00:30]} Nd4 {[%emt 0:03:20]} 40. b4 {[%emt 0:00:23]} cxb4 {[%emt 0:01:28]} 41. Rc4 {[%emt 0:00:05]} Nf3+ {[%emt 0:00:54]} 42. Kg2 {[%emt 0:00:07] [#]} b3 $1 {[%emt 0:00:52]} 43. Rf4+ {[%emt 0:01:17] [#]} Qxf4 $3 {[%emt 0:00:22][%mdl 512] Weighted Error Value: White=0.83/Black=0.20 (precise)} 0-1

[Event "US Masters 2022"]
[Site "Charlotte"]
[Date "2022.11.28"]
[Round "9.12"]
[White "Brodsky, David"]
[Black "Bora, Safal"]
[Result "0-1"]
[ECO "C07"]
[WhiteElo "2509"]
[BlackElo "2446"]
[Annotator "TA"]
[PlyCount "108"]
[EventDate "2022.11.23"]
[EventType "swiss"]
[EventCountry "USA"]
[SourceTitle "playchess.com"]
[Source "ChessBase"]
[SourceQuality "1"]
[TimeControl "5400+30"]

{[%evp 19,108,20,26,0,6,8,6,1,29,17,17,20,23,0,0,-17,-10,-12,-13,-13,-10,-10,-11,-18,-11,-37,-28,-25,-21,-24,-25,-67,-61,-70,-65,-128,-122,-126,-125,-156,-130,-131,-125,-197,-193,-191,-175,-159,-135,-135,-135,-181,-178,-189,-207,-183,-176,-219,-224,-215,-215,-222,-162,-210,-184,-189,-144,-240,-254,-289,-282,-281,-281,-279,-260,-658,-599,-797,-797,-2267,-2135,-3030,-2876,-2367,-2272,-1956,-1956,-1884,-1760,-1086,-1049]} 1. e4 {[%emt 0:00:02]} e6 {[%emt 0:00:08]} 2. d4 {[%emt 0:00:05]} d5 {[%emt 0:00:03]} 3. Nd2 {[%emt 0:00:07]} c5 {[%emt 0:00:13]} 4. Ngf3 {[%emt 0:00:05]} cxd4 {[%emt 0:00:07]} 5. exd5 {[%emt 0:00:25]} Qxd5 {[%emt 0:00:06]} 6. Bc4 {[%emt 0:00:03]} Qd6 {[%emt 0:00:11]} 7. O-O {[%emt 0:00:06]} Nf6 {[%emt 0:00:05]} 8. Nb3 {[%emt 0:00:04]} Nc6 {[%emt 0:00:06]} 9. Nbxd4 {[%emt 0:00:03]} Nxd4 {[%emt 0:00:05]} 10. Nxd4 {[%emt 0:00:04]} Be7 {[%emt 0:00:16]} 11. b3 {[%emt 0:01:09] C07: French Tarrasch: 3...c5, 4 Ngf3 and 4 exd5 Qxd5.} O-O {[%emt 0:00:36]} 12. Bb2 {[%emt 0:00:04]} Qf4 {[%emt 0:00:41]} 13. Qe2 {[%emt 0:02:06] The position is equal.} b6 {[%emt 0:01:14]} (13... Bc5 $5 {[%cal Rc5d4]} 14. Rad1 b6 $11) 14. Rad1 {[%emt 0:09:56]} Bc5 {[%emt 0:00:48]} 15. a3 {[%emt 0:15:38]} a5 {[%emt 0:00:56] [#] Against b4} 16. Nb5 $146 {[%emt 0:12:45]} (16. b4 $5 axb4 17. axb4 Bxb4 {[#]} 18. Nxe6 $1 Bxe6 19. Bxe6 $11) ({Predecessor:} 16. b4 axb4 17. axb4 Bxb4 18. Nxe6 Bxe6 19. Bxe6 Rae8 20. Qc4 Qxc4 21. Bxc4 Ne4 22. Bd3 {½-½ (28) Krebs,J (2347)-Toedter,H (2167) ICCF email 2018}) 16... Bb7 {[%emt 0:05:08]} ({Don't play} 16... Ng4 17. g3 Qf5 18. Nd6 $16) 17. Rd3 {[%emt 0:09:58]} Rfd8 {[%emt 0:16:48]} 18. Be5 {[%emt 0:16:16]} Qe4 {[%emt 0:04:26] Chess con chili.} (18... Qf5 {keeps more tension.} 19. Nd6 Bxd6 20. Rxd6 Rxd6 21. Bxd6 b5) 19. Qxe4 {[%emt 0:00:26]} Bxe4 $40 {[%emt 0:06:05][%mdl 128] Black attacks.} (19... Nxe4 {looks sharper.} 20. Nc7 Rac8 21. Nxe6 Bxf2+ 22. Rxf2 Rxd3 23. cxd3 Nxf2 24. Kxf2 b5) 20. Rxd8+ {[%emt 0:00:35]} Rxd8 {[%emt 0:00:04][%cal Ba8d8,Bd8d2,Bd2c2][%mdl 32]} 21. c3 $1 {[%emt 0:00:05]} Rd2 {[%emt 0:05:28]} 22. h3 {[%emt 0:10:50]} (22. b4 {feels hotter.} Ng4 23. Bg3 Ne3 24. bxc5 Nxc4 25. f3) 22... Rc2 {[%emt 0:13:43]} 23. b4 {[%emt 0:12:48]} axb4 {[%emt 0:13:51]} 24. axb4 {[%emt 0:00:02]} Bxb4 {[%emt 0:00:56]} 25. Rd1 {[%emt 0:01:43] [#] Strongly threatening Rd8+.} Be7 {[%emt 0:01:10] Prevents Rd8+.} 26. Nd6 {[%emt 0:04:09]} Bd5 {[%emt 0:07:32]} 27. Ra1 {[%emt 0:01:32]} (27. Bxf6 $15 Bxf6 28. Bxd5 exd5 29. Nb5) 27... Bxd6 $17 {[%emt 0:03:02]} 28. Bxd6 {[%emt 0:00:12] Threatens to win with Bxd5.} h6 {[%emt 0:01:28]} (28... Bxc4 $2 {is a self mate.} 29. Ra8+) 29. Bb5 {[%emt 0:02:12]} Rxc3 {[%emt 0:00:17] Black is more active.} 30. Rb1 {[%emt 0:00:27]} Be4 {[%emt 0:02:31]} 31. Rb4 {[%emt 0:00:26]} (31. Rb2 $17 {keeps fighting.}) 31... Bd3 $19 {[%emt 0:02:38]} 32. Ba4 {[%emt 0:01:16]} Rc1+ {[%emt 0:03:58]} 33. Kh2 {[%emt 0:00:02]} Rc4 {[%emt 0:00:16]} 34. Rxc4 {[%emt 0:00:44]} Bxc4 $17 {[%emt 0:00:02][%mdl 4096] Endgame KBB-KBN} 35. Bc2 {[%emt 0:00:49]} (35. Bc6 $17 {was worth a try.}) 35... b5 $19 {[%emt 0:00:47]} 36. Kg3 {[%emt 0:00:37]} Nd5 {[%emt 0:00:15]} 37. Be4 {[%emt 0:00:08]} Nc3 {[%emt 0:00:24]} 38. Bc2 {[%emt 0:00:45]} Ne2+ {[%emt 0:00:08]} 39. Kh2 {[%emt 0:00:15]} Nd4 {[%emt 0:01:11]} 40. Be4 {[%emt 0:00:10]} f6 {[%emt 0:01:28][%cal Bf7f6,Bf6f5][%mdl 32]} 41. f4 {[%emt 0:00:22]} (41. Bg6 $142) 41... Kf7 {[%emt 0:00:37]} 42. g4 {[%emt 0:01:12]} f5 {[%emt 0:00:26]} 43. Bb7 {[%emt 0:00:25]} (43. Be5 $17 {might work better.}) 43... Bd5 {[%emt 0:01:01]} 44. Bc8 {[%emt 0:00:17]} fxg4 {[%emt 0:00:42]} 45. hxg4 {[%emt 0:00:01]} Nc2 {[%emt 0:01:01]} 46. Ba6 {[%emt 0:00:23]} b4 {[%emt 0:00:33][%cal Bb5b4,Bb4b3][%mdl 32]} 47. Bd3 $2 {[%emt 0:00:14]} (47. Kg3) 47... b3 {[%emt 0:00:03] Hoping for ...Ne1. Black is clearly winning.} 48. Kg3 {[%emt 0:00:39]} Ne1 {[%emt 0:00:22]} 49. Bb1 {[%emt 0:00:33]} Bc4 {[%emt 0:00:16] White must now prevent ...Bd3.} 50. Bb4 {[%emt 0:00:35]} Bd3 {[%emt 0:00:18]} 51. Bxe1 {[%emt 0:00:10]} Bxb1 {[%emt 0:00:03]} 52. Bc3 {[%emt 0:00:10]} g6 {[%emt 0:00:08]} 53. Kh4 {[%emt 0:00:33]} Bc2 {[%emt 0:00:05]} 54. Bb2 {[%emt 0:00:11]} Bd1 {[%emt 0:00:05] Weighted Error Value: White=0.52/Black=0.05 (flawless)} 0-1